bitfinex-derivatives/quotes_SOLF0:USTF0_20250901
["timestamp","ask_amount","ask_price","bid_price","bid_amount"]
[1756748358046,74.5,197.81,197.71,3.98182332]
[1756748358251,74.5,197.81,197.72,3.98182332]
[1756748358448,74.5,197.81,197.73,3.98182332]
[1756748358653,74.5,197.81,197.74,3.98182332]
[1756748358854,74.5,197.81,197.75,3.98182332]
[1756748359056,74.48,197.81,197.76,3.98182332]
[1756748359259,0.02,197.8,197.7,11.00256706]
[1756748359457,0.02,197.8,197.71,3.9796621]
[1756748359657,0.02,197.8,197.72,3.9796621]
[1756748359860,0.02,197.8,197.73,3.9796621]
[1756748360060,0.02,197.8,197.74,3.9796621]
[1756748360258,74.48,197.81,197.75,3.9796621]
[1756748360552,0.02,197.8,197.7,11.00256706]
[1756748360758,0.02,197.8,197.71,12.11872162]
[1756748361054,15.15,197.93,197.71,12.11872162]
[1756748361055,2.88256706,197.85,197.73,2.86256706]
[1756748361256,0.02,197.83,197.75,8.14]
[1756748361458,0.02,197.83,197.76,3.97821156]
[1756748361660,0.02,197.83,197.75,8.14]
[1756748361862,0.02,197.83,197.76,3.97818983]
[1756748362061,0.02,197.83,197.75,8.14]
[1756748362257,0.02,197.83,197.76,3.97818983]
[1756748362455,0.02,197.83,197.75,8.14]
[1756748362655,0.02,197.83,197.76,3.97779579]
[1756748362855,0.02,197.83,197.75,8.14]
[1756748363060,0.02,197.83,197.76,3.97779579]
[1756748363258,0.02,197.83,197.75,8.14]
[1756748363458,0.02,197.83,197.76,3.9773333]
[1756748363663,0.02,197.83,197.75,8.14]
[1756748363961,0.02,197.83,197.76,3.9773333]
[1756748364163,0.02,197.83,197.75,8.14]
[1756748364362,0.02,197.83,197.76,3.97683709]
[1756748364565,0.02,197.83,197.75,8.14]
[1756748364765,0.02,197.83,197.76,3.97683709]
[1756748365060,0.02,197.83,197.75,8.14]
[1756748365255,73.86,197.84,197.63,344.3531]
[1756748365256,0.02,197.81,197.7,8.14]
[1756748365459,0.02,197.81,197.71,3.97657113]
[1756748365663,0.02,197.81,197.72,3.97657113]
[1756748365863,0.02,197.81,197.73,3.97657113]
[1756748366064,0.02,197.81,197.74,3.97657113]
[1756748366365,0.02,197.81,197.7,8.14]
[1756748366554,15.15,197.93,197.68,4.20979494]
[1756748366555,35.96,197.8,197.73,8.14]
[1756748366761,35.96,197.79,197.75,8.14]
[1756748366955,35.6,197.78,197.75,8.14]
[1756748367156,0.02,197.95,197.75,2.86256706]
[1756748367361,2.86256706,197.91,197.79,8.14]
[1756748367560,37.66,197.9,197.81,8.14]
[1756748368066,37.68,197.9,197.81,8.14]
[1756748369663,37.68,197.9,197.78,2.86256706]
[1756748369664,0.02,197.89,197.78,2.86256706]
[1756748369970,0.02,197.87,197.77,8.14]
[1756748370166,0.02,197.87,197.78,3.97515717]
[1756748370367,0.02,197.87,197.77,8.14]
[1756748372760,82.06,197.86,197.77,8.14]
[1756748373672,2.88256706,197.85,197.77,8.14]
[1756748374666,0.88017705,197.84,197.77,8.14]
[1756748375370,0.02,197.83,197.72,8.14]
[1756748375568,2.86256706,197.82,197.73,3.97510892]
[1756748375770,2.86256706,197.82,197.74,3.97510892]
[1756748375978,2.86256706,197.82,197.75,3.97510892]
[1756748376165,2.86256706,197.82,197.72,8.14]
[1756748376474,2.86256706,197.82,197.73,3.97510892]
[1756748376664,2.86256706,197.82,197.72,8.14]
[1756748376863,2.86256706,197.82,197.73,3.97511522]
[1756748377060,2.86256706,197.82,197.72,8.14]
[1756748377260,2.86256706,197.82,197.73,3.97511522]
[1756748377461,2.86256706,197.82,197.72,8.14]
[1756748377660,2.86256706,197.82,197.73,3.97466595]
[1756748377873,2.86256706,197.82,197.72,8.14]
[1756748378169,13.7,197.81,197.74,8.04]
[1756748380772,0.03,197.8,197.74,8.04]
[1756748382267,342.79256706,197.83,197.74,8.04]
[1756748382472,127.42,197.82,197.74,8.04]
[1756748383372,342.79256706,197.83,197.74,8.04]
[1756748383770,339.9,197.83,197.74,8.04]
[1756748383978,339.9,197.83,197.76,8.04]
[1756748384176,127.42,197.82,197.76,8.04]
[1756748384974,127.42,197.82,197.78,8.04]
[1756748385166,127.42,197.82,197.74,8.04]
[1756748385371,127.42,197.82,197.76,8.04]
[1756748385573,339.9,197.83,197.77,3.9691975]
[1756748385766,339.9,197.83,197.76,2.86256706]
[1756748385976,339.9,197.83,197.77,3.9691975]
[1756748386175,127.42,197.82,197.78,3.96900155]
[1756748386472,127.42,197.82,197.77,8.04]
[1756748386673,127.42,197.82,197.76,2.86256706]
[1756748386873,127.42,197.82,197.78,8.04]
[1756748387173,127.42,197.82,197.71,4.20979494]
[1756748387174,127.42,197.82,197.76,8.04]
[1756748387376,127.42,197.82,197.77,3.97050943]
[1756748387574,127.42,197.82,197.76,8.04]
[1756748387768,127.42,197.82,197.78,8.04]
[1756748387977,127.45,197.82,197.72,8.04]
[1756748388180,127.45,197.82,197.75,8.04]
[1756748388376,0.03,197.82,197.76,3.97048209]
[1756748388675,127.4,197.81,197.77,12.01048209]
[1756748388869,127.4,197.81,197.77,8.04]
[1756748389067,127.43,197.81,197.74,2.86256706]
[1756748389374,127.43,197.81,197.75,3.97132546]
[1756748389580,0.03,197.8,197.76,3.97132546]
[1756748389875,127.4,197.81,197.75,8.04]
[1756748390076,127.4,197.81,197.77,8.04]
[1756748390578,339.93,197.83,197.77,8.04]
[1756748390777,127.38,197.82,197.75,8.04]
[1756748390978,127.38,197.82,197.76,3.97308084]
[1756748391181,127.41,197.81,197.77,3.97297954]
[1756748391478,127.41,197.8,197.74,10.90256706]
[1756748391679,127.41,197.8,197.75,12.01366062]
[1756748391875,127.41,197.8,197.76,3.97366062]
[1756748392179,127.41,197.8,197.77,3.97366062]
[1756748392378,127.41,197.8,197.75,8.04]
[1756748392579,127.41,197.8,197.76,3.97365321]
[1756748392779,127.41,197.8,197.77,3.97365321]
[1756748392980,127.41,197.8,197.74,10.90256706]
[1756748393179,127.38,197.79,197.76,8.04]
[1756748393478,127.38,197.79,197.77,3.97365321]
[1756748393676,127.38,197.79,197.76,8.04]
[1756748393877,127.38,197.79,197.77,3.97365613]
[1756748394174,127.38,197.79,197.76,8.04]
[1756748394371,127.38,197.79,197.77,3.97382013]
[1756748394572,127.38,197.79,197.76,8.04]
[1756748394774,127.38,197.79,197.77,3.97365907]
[1756748394979,127.41,197.79,197.71,8.04]
[1756748395169,127.41,197.79,197.72,3.97370244]
[1756748395368,127.41,197.79,197.73,12.01370244]
[1756748395570,127.41,197.79,197.75,8.04]
[1756748396080,127.38,197.79,197.72,8.04]
[1756748396381,127.38,197.79,197.73,3.97388661]
[1756748396680,127.38,197.79,197.75,8.04]
[1756748396880,127.36,197.78,197.75,8.04]
[1756748397179,127.36,197.78,197.71,10.90256706]
[1756748397376,127.36,197.78,197.72,3.97514063]
[1756748397573,0.03,197.77,197.73,3.97514063]
[1756748397771,0.03,197.77,197.74,3.97514063]
[1756748397976,0.03,197.77,197.75,3.97514063]
[1756748398172,339.9,197.83,197.71,2.86256706]
[1756748398377,127.37,197.82,197.72,12.0159911]
[1756748398576,127.37,197.82,197.73,3.9759911]
[1756748398779,127.37,197.82,197.74,3.9759911]
[1756748398981,127.34,197.81,197.75,3.9759911]
[1756748399181,0.03,197.8,197.76,3.9759911]
[1756748399381,0.03,197.8,197.72,8.04]
[1756748399573,0.03,197.8,197.73,3.9770335]
[1756748399883,0.03,197.8,197.74,3.9770335]
[1756748400077,0.03,197.8,197.75,12.0170335]
[1756748400281,127.34,197.79,197.77,8.04]
[1756748400477,127.34,197.79,197.74,10.90256706]
[1756748400677,127.34,197.79,197.75,3.97826907]
[1756748400873,127.34,197.79,197.76,3.97826907]
[1756748401176,127.34,197.78,197.72,8.04]
[1756748401374,127.34,197.78,197.73,3.97806619]
[1756748401579,127.34,197.78,197.75,8.04]
[1756748401784,127.34,197.78,197.76,3.97806619]
[1756748402084,127.34,197.78,197.72,8.04]
[1756748402280,127.34,197.78,197.73,3.97979033]
[1756748402581,127.34,197.78,197.74,3.97979033]
[1756748402782,127.34,197.78,197.75,3.97979033]
[1756748402979,339.9,197.83,197.76,3.97979033]
[1756748403188,0.88017705,197.84,197.82,2.86256706]
[1756748403386,2.86256706,197.96,197.84,8.04]
[1756748403581,339.94,198.02,197.86,2.86256706]
[1756748403582,127.32,197.95,197.86,2.86256706]
[1756748403779,127.32,197.94,197.88,0.03276963]
[1756748403980,127.32,197.94,197.89,3.97831728]
[1756748404179,127.32,197.94,197.88,0.03276963]
[1756748405084,127.32,197.94,197.89,3.97478113]
[1756748405286,127.32,197.94,197.88,0.03276963]
[1756748406479,2.86256706,197.93,197.88,0.03276963]
[1756748406885,127.32,197.94,197.88,0.03276963]
[1756748407189,2.86256706,197.93,197.88,0.03276963]
[1756748407786,0.04,197.89,197.88,0.03276963]
[1756748407988,127.32,197.89,197.88,0.03276963]
[1756748410190,0.04,197.88,197.79,8.04]
[1756748410388,2.86256706,197.87,197.8,3.96954051]
[1756748410687,2.86256706,197.87,197.79,8.04]
[1756748410884,2.86256706,197.87,197.8,3.96954051]
[1756748411085,0.04,197.86,197.73,10.57256706]
[1756748411279,0.04,197.86,197.75,7.71]
[1756748411478,0.03434439,197.85,197.76,3.96959646]
[1756748411684,0.03434439,197.85,197.77,3.96959646]
[1756748411885,0.91442127,197.85,197.78,3.96959646]
[1756748412089,0.03434439,197.85,197.79,3.96959646]
[1756748412288,0.03434439,197.85,197.75,7.71]
[1756748412490,0.03434439,197.85,197.76,3.96976828]
[1756748412690,0.03434439,197.85,197.77,3.96976828]
[1756748412888,2.86256706,197.84,197.78,3.96976828]
[1756748413191,0.03434439,197.85,197.62,8.4157767]
[1756748413192,2.86256706,197.81,197.72,7.71]
[1756748413492,2.86256706,197.81,197.73,3.97014831]
[1756748413692,2.86256706,197.81,197.74,3.97014831]
[1756748413894,0.03307298,197.78,197.75,3.97014831]
[1756748414188,0.03307298,197.78,197.72,2.86256706]
[1756748414493,127.26,197.81,197.76,7.71]
[1756748414689,31.34,197.83,197.78,7.71]
[1756748414890,0.07,197.82,197.79,3.97049134]
[1756748415096,3.81275524,197.82,197.71,7.71]
[1756748415288,0.07,197.78,197.72,3.97070695]
[1756748415594,0.07,197.78,197.71,7.71]
[1756748415798,0.07,197.78,197.72,3.97088907]
[1756748416091,0.07,197.78,197.67,10.57256706]
[1756748416292,0.07,197.78,197.68,3.97089866]
[1756748416492,0.07,197.78,197.7,7.71]
[1756748416687,36.44,197.77,197.71,3.97089866]
[1756748416887,68.32,197.78,197.74,7.71]
[1756748417086,68.32,197.78,197.76,7.71]
[1756748418094,101.38,197.79,197.76,7.71]
[1756748419492,101.38,197.79,197.72,7.71]
[1756748419797,99.74,197.78,197.7,7.71]
[1756748419987,99.74,197.78,197.71,4.02068612]
[1756748420189,99.74,197.78,197.72,4.02068612]
[1756748420395,99.74,197.78,197.7,7.71]
[1756748420596,2.86256706,197.8,197.71,4.02019631]
[1756748420896,0.88018818,197.82,197.69,2.86256706]
[1756748420897,127.26,197.79,197.72,11.73019631]
[1756748421094,0.88018818,197.82,197.73,4.02019631]
[1756748421288,127.26,197.81,197.74,4.02019631]
[1756748421492,127.26,197.81,197.72,7.71]
[1756748421792,127.26,197.81,197.73,4.01977208]
[1756748421990,0.88018818,197.82,197.74,4.01977208]
[1756748422196,0.88018818,197.82,197.72,7.71]
[1756748422396,38.56,197.81,197.73,4.01953343]
[1756748422598,38.56,197.81,197.74,11.72953343]
[1756748422794,0.88018818,197.82,197.75,4.01953343]
[1756748423093,37.78,197.81,197.77,7.71]
[1756748423298,37.78,197.81,197.72,7.71]
[1756748423494,37.78,197.81,197.73,4.01958697]
[1756748423698,37.78,197.81,197.72,7.71]
[1756748423699,37.78,197.81,197.75,7.71]
[1756748423900,37.78,197.81,197.77,7.71]
[1756748424203,0.07,197.8,197.72,7.71]
[1756748424405,0.07,197.8,197.73,4.02002566]
[1756748424705,0.07,197.8,197.72,7.71]
[1756748424896,0.07,197.8,197.73,4.02005011]
[1756748425097,15.15,197.79,197.63,4.25606299]
[1756748425296,0.07,197.74,197.64,4.02036008]
[1756748425503,16.74,197.73,197.65,4.02036008]
[1756748425807,16.74,197.73,197.66,4.02036008]
[1756748426106,16.74,197.73,197.67,4.02036008]
[1756748426306,16.74,197.73,197.62,7.71]
[1756748426505,16.74,197.73,197.63,4.01784475]
[1756748426706,16.74,197.73,197.64,4.01784475]
[1756748426905,16.74,197.73,197.65,4.01784475]
[1756748427108,16.74,197.73,197.66,4.01784475]
[1756748427300,16.74,197.73,197.67,4.01784475]
[1756748427506,16.74,197.73,197.62,7.71]
[1756748427802,16.74,197.73,197.63,4.01647551]
[1756748428107,16.74,197.73,197.64,4.01647551]
[1756748428308,16.74,197.73,197.65,11.72647551]
[1756748428509,16.74,197.73,197.66,4.01647551]
[1756748428709,16.74,197.73,197.67,4.01647551]
[1756748428910,16.74,197.73,197.65,7.71]
[1756748429107,16.74,197.73,197.66,4.01619375]
[1756748429302,16.74,197.73,197.67,4.01619375]
[1756748429506,16.74,197.73,197.65,7.71]
[1756748429701,16.74,197.73,197.66,4.01596814]
[1756748430007,16.74,197.73,197.67,4.01596814]
[1756748430209,16.74,197.73,197.65,7.71]
[1756748430411,16.74,197.73,197.66,4.01566732]
[1756748430610,16.74,197.73,197.65,7.71]
[1756748430803,0.07,197.72,197.66,4.01566732]
[1756748431007,16.74,197.73,197.61,7.71]
[1756748431210,4.58431162,197.71,197.62,4.01614361]
[1756748431511,0.07,197.7,197.57,7.71]
[1756748431711,0.07,197.7,197.58,4.01639126]
[1756748431907,38.4,197.69,197.6,7.71]
[1756748432112,38.4,197.69,197.61,8.72309535]
[1756748432314,38.4,197.69,197.62,4.70670409]
[1756748432516,38.4,197.69,197.63,4.70670409]
[1756748432708,38.4,197.69,197.64,4.70670409]
[1756748433014,0.07,197.68,197.65,4.70670409]
[1756748433209,0.07,197.68,197.66,4.70670409]
[1756748433414,0.07,197.68,197.67,4.70670409]
[1756748433603,38.4,197.69,197.67,4.70670409]
[1756748433809,38.4,197.69,197.68,4.70670409]
[1756748434107,4.58431162,197.71,197.68,4.70670409]
[1756748434312,127.35,197.7,197.6,7.71]
[1756748434514,127.35,197.7,197.61,8.9020596]
[1756748434712,127.35,197.7,197.62,8.9020596]
[1756748434914,127.35,197.7,197.63,4.88691672]
[1756748435111,127.28,197.69,197.64,4.88691672]
[1756748435410,127.35,197.69,197.65,4.88691672]
[1756748435713,127.28,197.69,197.66,4.88691672]
[1756748435914,0.07,197.73,197.67,4.88691672]
[1756748436114,127.28,197.72,197.68,4.88691672]
[1756748436413,127.35,197.72,197.69,4.88691672]
[1756748436614,127.35,197.72,197.66,7.71]
[1756748436916,127.35,197.72,197.58,4.58431162]
[1756748436917,127.35,197.72,197.67,12.59401389]
[1756748437119,127.35,197.72,197.68,4.88401389]
[1756748437418,127.35,197.72,197.69,4.88401389]
[1756748437619,127.35,197.72,197.7,4.88401389]
[1756748437811,127.35,197.72,197.67,7.71]
[1756748438009,127.35,197.72,197.68,4.88299508]
[1756748438206,127.35,197.72,197.69,4.88299508]
[1756748438418,127.35,197.72,197.59,7.92]
[1756748438611,127.35,197.72,197.61,7.92]
[1756748438810,127.35,197.72,197.62,8.89561573]
[1756748439114,127.35,197.72,197.63,8.89561573]
[1756748439413,127.35,197.72,197.64,4.88233683]
[1756748439611,127.35,197.72,197.65,4.88233683]
[1756748439910,127.35,197.72,197.66,4.88233683]
[1756748440110,127.28,197.72,197.67,4.88233683]
[1756748440318,0.07,197.71,197.68,4.88233683]
[1756748440617,0.07,197.71,197.61,7.92]
[1756748440916,0.07,197.71,197.62,4.88076735]
[1756748441117,0.07,197.71,197.63,4.88076735]
[1756748441316,0.07,197.71,197.64,4.88076735]
[1756748441511,0.07,197.71,197.65,4.88076735]
[1756748441712,127.28,197.72,197.66,4.88076735]
[1756748441918,0.07,197.71,197.61,7.92]
[1756748442118,0.07,197.71,197.62,4.87953055]
[1756748442318,0.07,197.71,197.63,4.87953055]
[1756748442612,127.28,197.7,197.64,4.87953055]
[1756748442819,127.35,197.7,197.65,4.87953055]
[1756748443116,127.35,197.7,197.66,4.87953055]
[1756748443417,127.35,197.7,197.61,7.92]
[1756748443617,127.35,197.7,197.62,4.87751475]
[1756748443814,127.35,197.7,197.63,4.87751475]
[1756748444014,127.35,197.7,197.64,4.87751475]
[1756748444315,0.07,197.69,197.65,4.87751475]
[1756748444510,0.07,197.69,197.61,7.92]
[1756748444706,340.05,197.74,197.63,7.92]
[1756748444908,127.28,197.73,197.64,4.87665017]
[1756748445108,127.28,197.72,197.66,7.92]
[1756748445317,127.28,197.72,197.67,12.79665017]
[1756748445519,127.28,197.72,197.61,7.92]
[1756748445712,127.28,197.72,197.63,7.92]
[1756748445915,340.05,197.74,197.65,7.92]
[1756748446119,127.28,197.73,197.66,4.78744079]
[1756748446318,127.28,197.73,197.67,4.78744079]
[1756748446515,340.05,197.74,197.69,7.92]
[1756748446715,127.28,197.73,197.7,12.70719152]
[1756748446910,339.98,197.74,197.71,12.70719152]
[1756748447110,127.28,197.73,197.72,4.78719152]
[1756748447314,127.28,197.73,197.72,12.70719152]
[1756748448122,127.28,197.73,197.72,4.78719152]
[1756748448516,127.35,197.73,197.72,4.78829002]
[1756748448721,127.35,197.73,197.65,7.92]
[1756748448722,127.28,197.73,197.65,7.92]
[1756748449018,127.28,197.73,197.66,8.78727353]
[1756748449216,127.28,197.73,197.67,4.78847585]
[1756748449424,127.28,197.73,197.68,12.70847585]
[1756748449620,0.07,197.72,197.69,4.78847585]
[1756748449821,0.07,197.72,197.7,4.78847585]
[1756748450022,0.07,197.72,197.64,7.92]
[1756748450320,0.07,197.72,197.65,8.79160236]
[1756748450514,0.07,197.72,197.64,7.92]
[1756748450515,127.28,197.73,197.66,8.79160236]
[1756748450713,127.28,197.73,197.67,4.79110442]
[1756748451014,127.35,197.73,197.68,4.79445849]
[1756748451323,339.98,197.74,197.69,12.71445849]
[1756748451512,127.26,197.73,197.69,7.92]
[1756748451714,127.26,197.73,197.7,4.79765695]
[1756748451919,127.26,197.73,197.71,4.79765695]
[1756748452115,127.26,197.73,197.72,4.79765695]
[1756748453222,339.98,197.74,197.73,7.92]
[1756748453427,467.24,197.74,197.73,12.71765695]
[1756748453926,127.26,197.74,197.73,12.71765695]
[1756748454527,127.33,197.74,197.73,4.79765695]
[1756748455331,127.83,197.74,197.65,7.92]
[1756748455529,127.33,197.74,197.66,8.81642428]
[1756748455731,127.33,197.74,197.67,4.80543615]
[1756748455924,127.33,197.74,197.68,4.80543615]
[1756748456124,127.26,197.74,197.69,4.80543615]
[1756748456324,127.26,197.74,197.7,4.80543615]
[1756748456525,127.26,197.74,197.71,4.80543615]
[1756748456726,0.07,197.73,197.65,7.92]
[1756748457026,0.07,197.73,197.66,4.80713276]
[1756748457229,0.07,197.73,197.67,4.80713276]
[1756748457432,0.07,197.73,197.68,4.80713276]
[1756748457723,0.07,197.73,197.69,4.80713276]
[1756748457928,127.26,197.74,197.7,4.80713276]
[1756748458232,127.26,197.74,197.71,4.80713276]
[1756748458427,0.07,197.73,197.72,4.80713276]
[1756748459130,50.89,197.73,197.72,4.80713276]
[1756748460332,0.09,197.76,197.72,4.80713276]
[1756748460532,38.48,197.75,197.73,4.80713276]
[1756748460733,38.48,197.75,197.74,4.80713276]
[1756748460932,0.09,197.8,197.74,4.80713276]
[1756748461128,0.09,197.78,197.75,4.81131844]
[1756748461329,0.09,197.78,197.76,4.81131844]
[1756748461535,127.31,197.79,197.7,7.92]
[1756748461740,127.22,197.78,197.71,4.81135447]
[1756748462033,127.22,197.78,197.72,4.81135447]
[1756748462233,0.09,197.77,197.73,4.81135447]
[1756748462537,0.09,197.77,197.7,7.92]
[1756748466336,4.58599444,197.81,197.7,7.92]
[1756748466533,127.2,197.8,197.7,7.92]
[1756748467135,0.09,197.79,197.7,7.92]
[1756748467534,127.2,197.8,197.7,7.92]
[1756748467735,0.09,197.79,197.7,7.92]
[1756748468232,43.76,197.78,197.7,7.92]
[1756748469040,0.96018818,197.82,197.7,7.92]
[1756748469429,15.15,197.8,197.71,4.02247574]
[1756748469630,0.08,197.79,197.7,7.92]
[1756748469838,0.08,197.79,197.74,0.03215305]
[1756748470038,2.86684102,197.76,197.74,0.03215305]
[1756748470434,127.2,197.75,197.74,0.03215305]
[1756748472944,127.28,197.75,197.74,0.03215305]
[1756748474837,127.78,197.75,197.66,7.67]
[1756748475039,2.94684102,197.72,197.67,4.02613028]
[1756748475340,2.94684102,197.72,197.65,7.67]
[1756748475548,2.94684102,197.72,197.66,4.02239531]
[1756748475740,2.94684102,197.72,197.67,11.69239531]
[1756748475943,0.08,197.71,197.67,7.67]
[1756748476143,0.11556958,197.71,197.67,7.67]
[1756748477537,0.03556958,197.71,197.61,7.67]
[1756748477742,0.03556958,197.71,197.63,7.67]
[1756748478046,0.03556958,197.71,197.65,7.67]
[1756748478343,0.03556958,197.71,197.67,7.67]
[1756748479551,0.11556958,197.71,197.67,7.67]
[1756748479747,2.86684102,197.7,197.62,7.67]
[1756748479955,0.03556958,197.71,197.64,7.67]
[1756748480145,2.94684102,197.72,197.65,4.00640255]
[1756748480446,0.03721221,197.69,197.59,7.11155557]
[1756748480652,0.03721221,197.69,197.6,11.675732]
[1756748480950,0.03721221,197.69,197.62,7.67]
[1756748481250,0.03721221,197.69,197.64,7.67]
[1756748481445,0.03721221,197.69,197.66,7.67]
[1756748481651,0.03721221,197.69,197.59,7.11155557]
[1756748481850,0.03721221,197.69,197.61,7.67]
[1756748482050,0.03721221,197.69,197.6,4.00538759]
[1756748482051,92.97721221,197.69,197.63,7.67]
[1756748482351,93.05721221,197.69,197.65,7.67]
[1756748482850,92.94,197.69,197.6,7.67]
[1756748483152,92.97386896,197.69,197.62,7.67]
[1756748483345,92.97386896,197.69,197.63,4.00575089]
[1756748483546,92.97386896,197.69,197.65,7.67]
[1756748483747,95.92070998,197.69,197.6,7.67]
[1756748483950,95.92070998,197.69,197.61,4.00576888]
[1756748484251,2.98070998,197.69,197.62,11.67576888]
[1756748484451,93.48,197.68,197.62,7.67]
[1756748484848,0.0341348,197.67,197.56,7.67]
[1756748485051,0.0341348,197.67,197.58,7.67]
[1756748485249,91.64,197.66,197.6,7.67]
[1756748485552,90.98,197.65,197.61,4.00405694]
[1756748485744,0.03460474,197.65,197.63,7.67]
[1756748485942,0.03460474,197.65,197.56,7.67]
[1756748486152,0.03460474,197.65,197.58,10.53684102]
[1756748486451,0.03460474,197.65,197.62,7.67]
[1756748486653,0.03460474,197.65,197.64,7.67]
[1756748486952,0.03460474,197.65,197.64,11.67267689]
[1756748491157,0.03460474,197.65,197.64,4.00267689]
[1756748491457,0.03460474,197.65,197.59,7.67]
[1756748491661,0.08,197.64,197.6,4.00308733]
[1756748491953,0.03460474,197.65,197.54,4.24471455]
[1756748491954,0.03460474,197.65,197.54,10.53684102]
[1756748492154,31.76,197.64,197.56,7.67]
[1756748492352,31.76,197.64,197.57,4.00354167]
[1756748492553,31.76,197.64,197.58,4.00354167]
[1756748492757,0.03625168,197.62,197.59,12.37940476]
[1756748492959,0.03625168,197.62,197.6,4.70940476]
[1756748493258,0.11625168,197.62,197.61,4.70940476]
[1756748494157,0.11625168,197.62,197.54,7.67]
[1756748494352,0.08,197.59,197.55,3.99860588]
[1756748494655,0.08,197.59,197.54,7.67]
[1756748494858,2.86684102,197.57,197.48,7.67]
[1756748495159,2.86684102,197.57,197.37,8.4157767]
[1756748495160,15.15,197.55,197.4,7.67]
[1756748495356,2.86684102,197.5,197.4,7.67]
[1756748495548,45.68,197.49,197.4,7.67]
[1756748495748,90.66,197.48,197.4,7.67]
[1756748496052,2.86684102,197.5,197.4,7.67]
[1756748496258,0.03262932,197.46,197.4,7.67]
[1756748496556,61.0,197.46,197.4,2.86684102]
[1756748496749,2.86684102,197.52,197.41,7.67]
[1756748496954,0.03298185,197.45,197.31,7.67]
[1756748497155,0.03298185,197.45,197.38,7.67]
[1756748497364,3.58,197.47,197.4,7.67]
[1756748497655,26.14,197.47,197.4,7.67]
[1756748497851,2.86684102,197.52,197.4,7.67]
[1756748498052,48.66,197.51,197.4,7.67]
[1756748499354,0.03,197.54,197.4,7.67]
[1756748499560,83.0,197.5,197.4,7.67]
[1756748501157,2.86684102,197.53,197.4,7.67]
[1756748501352,2.86684102,197.57,197.46,7.84]
[1756748501558,36.2,197.52,197.46,7.84]
[1756748501958,70.2,197.53,197.46,7.84]
[1756748502363,2.86684102,197.57,197.46,7.84]
[1756748502364,0.07,197.56,197.46,7.84]
[1756748502662,127.52,197.55,197.46,7.84]
[1756748502958,0.07,197.56,197.46,7.84]
[1756748503163,127.52,197.56,197.49,7.84]
[1756748503463,340.14,197.6,197.54,2.86684102]
[1756748503654,340.14,197.6,197.55,7.84]
[1756748504254,340.14,197.6,197.54,2.86684102]
[1756748504454,340.14,197.6,197.55,7.84]
[1756748504763,340.14,197.6,197.54,2.86684102]
[1756748504967,340.14,197.6,197.55,2.86684102]
[1756748505465,340.14,197.6,197.56,7.84]
[1756748506068,340.14,197.6,197.55,2.86684102]
[1756748506270,340.14,197.6,197.57,7.84]
[1756748506467,340.14,197.6,197.58,4.5751458]
[1756748506765,340.14,197.6,197.59,12.41512754]
[1756748506962,340.14,197.6,197.59,4.57512754]
[1756748507165,340.14,197.6,197.55,2.86684102]
[1756748507363,340.14,197.6,197.56,4.57575046]
[1756748507569,340.14,197.6,197.58,7.84]